bitfinex-derivatives/quotes_SOLF0:USTF0_20250312
["timestamp","ask_amount","ask_price","bid_price","bid_amount"]
[1741812308038,0.0589967,125.26,125.23,0.05214646]
[1741812308640,0.0589967,125.26,125.25,7.9854]
[1741812308832,7.9812,125.32,125.25,49.41576975]
[1741812309433,7.9831,125.29,125.25,30.82]
[1741812310142,0.05836526,125.28,125.26,0.05920266]
[1741812311043,8.04196526,125.28,125.26,0.05920266]
[1741812311245,0.05836526,125.28,125.26,0.05920266]
[1741812311642,8.04196526,125.28,125.26,0.05920266]
[1741812312140,0.05836526,125.28,125.26,8.04380266]
[1741812312369,0.05836526,125.28,125.26,0.05920266]
[1741812313647,8.04226526,125.28,125.26,0.05920266]
[1741812313951,0.05836526,125.28,125.26,0.05920266]
[1741812314746,0.05836526,125.28,125.26,8.04360266]
[1741812314945,0.05836526,125.28,125.26,0.05920266]
[1741812316342,0.05836526,125.28,125.26,8.04370266]
[1741812316542,0.05836526,125.28,125.26,0.05920266]
[1741812316946,8.04216526,125.28,125.26,0.05920266]
[1741812317146,0.05836526,125.28,125.26,0.05920266]
[1741812317448,7.9841,125.27,125.26,0.05920266]
[1741812322255,0.05836526,125.28,125.26,0.05920266]
[1741812323252,8.04226526,125.28,125.26,0.05920266]
[1741812323752,0.05836526,125.28,125.26,0.05920266]
[1741812325150,8.04196526,125.28,125.26,0.05920266]
[1741812325349,0.05836526,125.28,125.26,0.05920266]
[1741812325955,0.05836526,125.28,125.26,8.04370266]
[1741812326352,0.05836526,125.28,125.26,0.05920266]
[1741812326956,0.05836526,125.28,125.27,7.9841]
[1741812327146,0.05836526,125.28,125.27,38.8041]
[1741812327349,30.82,125.36,125.27,57.39576975]
[1741812327546,12.6343,125.37,125.29,18.59576975]
[1741812327851,7.9766,125.39,125.33,18.59576975]
[1741812328154,239.52,125.41,125.33,49.41576975]
[1741812328545,8.03644691,125.38,125.36,0.05271476]
[1741812328955,0.05914691,125.38,125.36,0.05271476]
[1741812329848,8.03684691,125.38,125.36,0.05271476]
[1741812330056,0.05914691,125.38,125.36,0.05271476]
[1741812330656,0.05914691,125.38,125.36,30.87271476]
[1741812330955,20.6093,125.42,125.38,7.9771]
[1741812331153,7.975,125.42,125.38,7.9771]
[1741812331453,7.9754,125.41,125.37,7.9775]
[1741812331758,57.93026975,125.45,125.36,30.82]
[1741812332069,0.06124719,125.4,125.37,0.05640116]
[1741812332357,0.06124719,125.4,125.36,30.82]
[1741812332548,7.977,125.39,125.37,0.05827628]
[1741812332956,0.06124719,125.4,125.37,0.05827628]
[1741812333158,7.9771,125.38,125.37,0.05827628]
[1741812333958,0.06124719,125.4,125.37,0.05827628]
[1741812335047,7.9771,125.38,125.37,0.05827628]
[1741812335359,0.06124719,125.4,125.37,0.05827628]
[1741812335958,7.9771,125.39,125.37,0.05827628]
[1741812336661,7.9771,125.38,125.37,0.05827628]
[1741812336861,0.06124719,125.4,125.37,0.05827628]
[1741812337384,8.03744719,125.4,125.37,0.05827628]
[1741812338858,0.06124719,125.4,125.37,0.05827628]
[1741812339065,0.06124719,125.4,125.37,30.83827628]
[1741812340354,0.06124719,125.4,125.39,7.9765]
[1741812341066,16.5076,125.45,125.41,7.9751]
[1741812341260,8.5345,125.45,125.41,7.9751]
[1741812341960,8.5345,125.45,125.4,38.7556]
[1741812342161,0.05744953,125.44,125.42,0.0563336]
[1741812342356,8.03124953,125.44,125.42,0.0563336]
[1741812342966,0.05744953,125.44,125.42,0.0563336]
[1741812344065,7.974,125.43,125.42,0.0563336]
[1741812345568,18.59576975,125.43,125.37,30.78]
[1741812345863,18.59576975,125.43,125.36,43.4061]
[1741812346268,7.9762,125.4,125.36,51.3842]
[1741812346776,0.06113847,125.39,125.37,0.05094958]
[1741812347371,8.5345,125.45,125.37,0.05094958]
[1741812347565,16.5075,125.45,125.41,7.9748]
[1741812347759,4.2742,125.46,125.4,30.78]
[1741812347964,18.59576975,125.47,125.41,30.78]
[1741812348165,7.9731,125.45,125.41,38.755]
[1741812348471,18.59576975,125.47,125.41,30.78]
[1741812348672,0.05674354,125.44,125.42,8.02695348]
[1741812349466,0.05674354,125.44,125.42,0.05275348]
[1741812349673,0.05674354,125.44,125.43,7.974]
[1741812350272,12.3222,125.49,125.45,7.9722]
[1741812350471,22.64776975,125.51,125.44,30.76]
[1741812350869,7.9702,125.49,125.45,7.9723]
[1741812351073,22.64776975,125.51,125.44,30.76]
[1741812351365,0.05433699,125.49,125.48,7.9706]
[1741812351570,0.05433699,125.49,125.44,49.35576975]
[1741812351571,22.95846975,125.55,125.47,30.76]
[1741812351796,53.71846975,125.55,125.48,30.76]
[1741812352781,22.95846975,125.55,125.5,0.05818056]
[1741812353077,4.3627,125.55,125.5,0.05818056]
[1741812353264,4.3627,125.55,125.51,30.76]
[1741812353469,27.27606975,125.57,125.51,30.76]
[1741812353769,16.6459,125.57,125.52,7.9677]
[1741812353975,8.6803,125.57,125.53,0.05081122]
[1741812354883,7.9658,125.56,125.53,0.05081122]
[1741812355077,257.87576975,125.59,125.53,0.05081122]
[1741812355278,22.59436975,125.61,125.53,0.05081122]
[1741812355476,7.9652,125.57,125.53,0.05081122]
[1741812355675,7.9652,125.57,125.52,12.1067]
[1741812355891,7.9652,125.57,125.54,0.05992563]
[1741812356072,7.9658,125.56,125.54,0.05992563]
[1741812357377,53.33436975,125.61,125.54,0.05992563]
[1741812357580,7.9649,125.58,125.54,0.05992563]
[1741812357879,53.33436975,125.61,125.54,0.05992563]
[1741812358480,7.9657,125.56,125.54,0.05992563]
[1741812359082,7.9653,125.57,125.54,0.05992563]
[1741812359587,22.59436975,125.61,125.54,30.79992563]
[1741812359779,3.9986,125.61,125.54,49.39569538]
[1741812360782,3.9986,125.61,125.54,57.36249538]
[1741812360978,3.9986,125.61,125.54,49.39569538]
[1741812361179,257.77576975,125.65,125.56,18.59576975]
[1741812361377,30.74,125.66,125.58,18.59576975]
[1741812361576,7.961,125.64,125.6,7.9628]
[1741812361777,49.33576975,125.67,125.6,30.74]
[1741812361978,18.59576975,125.67,125.61,0.05780294]
[1741812362283,7.961,125.64,125.61,0.05780294]
[1741812362679,7.9616,125.63,125.61,0.05780294]
[1741812363074,18.59576975,125.67,125.61,0.05780294]
[1741812363478,7.9616,125.63,125.61,0.05780294]
[1741812363983,18.59576975,125.67,125.61,0.05780294]
[1741812364478,7.9617,125.63,125.61,0.05780294]
[1741812364679,30.74,125.68,125.61,0.05780294]
[1741812364885,12.2214,125.69,125.62,18.59576975]
[1741812365086,12.2214,125.69,125.63,30.72]
[1741812365284,12.2214,125.69,125.64,0.05254945]
[1741812366184,7.96,125.65,125.64,0.05254945]
[1741812367090,18.59576975,125.66,125.58,4.0772]
[1741812367289,18.59576975,125.64,125.56,18.59576975]
[1741812367589,49.31576975,125.64,125.55,34.8669]
[1741812367787,4.0902,125.63,125.55,34.8669]
[1741812367983,18.59576975,125.62,125.55,30.72]
[1741812368183,30.72,125.61,125.53,8.172]
[1741812368383,0.05706796,125.6,125.57,0.05190912]
[1741812368590,7.9644,125.58,125.57,0.05190912]
[1741812369485,38.6844,125.58,125.57,0.05190912]
[1741812371283,0.05706796,125.6,125.57,0.05190912]
[1741812371986,0.05706796,125.6,125.57,38.71700912]
[1741812372690,0.05706796,125.6,125.59,7.9638]
[1741812372881,4.2666,125.65,125.57,60.35349988]
[1741812373081,4.2666,125.65,125.57,60.30159076]
[1741812373484,7.9607,125.64,125.6,7.9628]
[1741812373680,7.9607,125.64,125.6,38.6628]
[1741812373886,7.9613,125.63,125.6,30.7]
[1741812374083,4.2666,125.65,125.61,0.05529653]
[1741812374284,4.2666,125.65,125.58,30.7]
[1741812374503,4.2666,125.65,125.62,0.05100687]
[1741812374984,12.2269,125.65,125.62,0.05100687]
[1741812375188,4.0798,125.66,125.62,0.05100687]
[1741812375388,30.7,125.68,125.62,0.05100687]
[1741812375589,60.30159076,125.68,125.62,0.05100687]
[1741812375883,7.9613,125.63,125.62,0.05100687]
[1741812376393,7.9609,125.64,125.62,0.05100687]
[1741812376594,60.30159076,125.68,125.62,0.05100687]
[1741812377094,29.60159076,125.66,125.55,35.0412]
[1741812377294,35.0573,125.65,125.55,35.0412]
[1741812377597,7.963,125.61,125.56,7.9651]
[1741812377793,35.0573,125.65,125.56,7.9651]
[1741812377993,29.60159076,125.64,125.55,4.3412]
[1741812378192,7.9636,125.6,125.59,0.05207468]
[1741812379198,60.35370886,125.62,125.54,30.7]
[1741812379390,60.30159076,125.62,125.53,7.9673]
[1741812379586,7.9654,125.57,125.53,7.9673]
[1741812379997,60.30159076,125.62,125.52,30.7]
[1741812380192,0.05610017,125.56,125.54,0.05648502]
[1741812380391,60.30159076,125.62,125.52,30.7]
[1741812380599,0.06060662,125.56,125.54,0.06001251]
[1741812380897,60.30159076,125.62,125.52,30.7]
[1741812381196,0.05577695,125.56,125.54,0.05625631]
[1741812381393,30.7,125.62,125.55,30.7]
[1741812381588,7.9629,125.61,125.57,7.9646]
[1741812381793,7.9629,125.61,125.55,30.7]
[1741812382196,7.9629,125.61,125.57,7.9648]
[1741812382502,4.3573,125.65,125.58,30.7]
[1741812382694,0.04904906,125.6,125.58,30.76008047]
[1741812382999,4.3573,125.65,125.58,30.76008047]
[1741812383396,0.04904906,125.63,125.58,30.76008047]
[1741812383894,7.9624,125.62,125.58,38.72418047]
[1741812384099,0.04904906,125.63,125.58,30.76008047]
[1741812384501,7.9631,125.61,125.58,0.06008047]
[1741812384704,30.74904906,125.63,125.58,0.06008047]
[1741812385202,7.9622,125.62,125.58,0.06008047]
[1741812385392,7.9622,125.62,125.58,8.02448047]
[1741812386103,7.9627,125.61,125.58,0.06008047]
[1741812386897,7.9624,125.62,125.58,8.02448047]
[1741812388797,30.74904906,125.63,125.58,8.02448047]
[1741812388999,7.9626,125.61,125.58,8.02448047]
[1741812389801,7.9623,125.62,125.58,8.02448047]
[1741812390511,8.01064906,125.63,125.59,7.9635]
[1741812390717,0.04904906,125.63,125.58,0.06008047]
[1741812391203,4.37764906,125.63,125.58,0.06008047]
[1741812391508,7.9636,125.6,125.58,0.06008047]
[1741812391806,0.04904906,125.6,125.58,0.06008047]
[1741812392012,7.9638,125.59,125.58,0.06008047]
[1741812396915,0.04904906,125.6,125.52,4.0348]
[1741812397113,7.967,125.54,125.52,4.0348]
[1741812397512,4.1901,125.6,125.52,12.003]
[1741812397711,7.966,125.56,125.52,12.003]
[1741812397916,4.1901,125.6,125.52,4.0348]
[1741812398110,0.05079479,125.55,125.53,0.06031198]
[1741812398325,18.50679088,125.59,125.53,0.06031198]
[1741812398519,0.05177737,125.55,125.53,0.06031198]
[1741812399712,0.05177737,125.55,125.53,8.02771198]
[1741812399918,0.05177737,125.55,125.53,0.06031198]
[1741812400111,0.05177737,125.55,125.54,38.667]
[1741812400314,22.83539088,125.63,125.54,49.20679088]
[1741812400510,53.53539088,125.63,125.54,49.20679088]
[1741812400710,53.53539088,125.63,125.55,7.966]
[1741812401118,53.53539088,125.63,125.54,49.20679088]
[1741812401318,53.53539088,125.63,125.54,30.7]
[1741812401513,7.965,125.58,125.57,0.05307489]
[1741812405326,7.965,125.58,125.57,7.489e-05]
[1741812405813,26.47179088,125.58,125.57,7.489e-05]
[1741812413324,7.9689,125.51,125.48,53.43079088]
[1741812413627,7.9689,125.51,125.48,61.40139088]
[1741812413835,7.9689,125.51,125.48,42.8946]
[1741812414017,30.7,125.55,125.48,4.224]
[1741812414217,18.50679088,125.54,125.46,22.85169088]
[1741812414423,0.05242959,125.53,125.5,0.05056785]
[1741812415025,7.9689,125.51,125.5,0.05056785]
[1741812416023,49.20679088,125.52,125.45,120.20643623]
[1741812416324,18.50679088,125.5,125.43,4.2018]
[1741812416625,7.974,125.43,125.4,86.00262716]
[1741812416821,18.50679088,125.46,125.4,36.79583628]
[1741812417028,49.20679088,125.46,125.4,36.79583628]
[1741812417223,7.974,125.43,125.42,0.05730762]
[1741812417927,18.55828198,125.44,125.37,8.4036]
[1741812418232,18.55828198,125.44,125.36,18.50679088]
[1741812418233,18.50679088,125.42,125.35,32.80813628]
[1741812418418,49.20679088,125.42,125.35,32.80813628]
[1741812418822,18.50679088,125.4,125.35,32.80813628]
[1741812419027,7.9784,125.36,125.35,32.80813628]
[1741812419725,26.48519088,125.36,125.35,2.918e-05]
[1741812419929,7.979,125.35,125.34,62.19369261]
[1741812420121,7.979,125.35,125.34,37.35599261]
[1741812420327,29.7275557,125.35,125.33,114.10581149]
[1741812420525,7.9797,125.34,125.33,34.89111149]
[1741812421428,7.9832,125.29,125.26,34.8613]
[1741812421924,7.9841,125.27,125.26,4.1613]
[1741812422828,0.05338903,125.28,125.25,0.05204425]
[1741812423028,7.9848,125.26,125.25,0.05204425]
[1741812423232,0.05338903,125.28,125.25,0.05204425]
[1741812424130,7.9848,125.26,125.25,0.05204425]
[1741812424332,0.05338903,125.28,125.25,0.05204425]
[1741812424726,7.9846,125.27,125.25,0.05204425]
[1741812424932,0.05338903,125.28,125.25,0.05204425]
[1741812425632,30.72,125.32,125.25,0.05204425]
[1741812425832,30.72,125.32,125.24,60.4475557]
[1741812426036,29.7275557,125.29,125.22,4.0446]
[1741812426246,30.72,125.28,125.22,4.0446]
[1741812426431,7.9861,125.24,125.22,4.0446]
[1741812426833,7.9861,125.24,125.22,4.10443336]
[1741812427336,7.9867,125.23,125.22,0.05983336]
[1741812427637,30.74,125.29,125.22,0.05983336]
[1741812427830,0.0559509,125.24,125.21,4.0094]
[1741812428030,269.0275557,125.33,125.24,0.05092448]
[1741812428231,299.7675557,125.33,125.25,30.74]
[1741812428431,0.05753622,125.3,125.27,0.05022244]
[1741812428636,7.9835,125.28,125.27,0.05022244]
[1741812431133,7.9835,125.28,125.27,2.244e-05]
[1741812431435,7.98,125.28,125.21,4.0094]
[1741812431638,29.7275557,125.26,125.21,4.0094]
[1741812432340,7.9878,125.22,125.19,4.1919]
[1741812432541,7.9878,125.22,125.19,4.24652516]
[1741812432733,8.0438151,125.22,125.19,4.24652516]
[1741812433640,0.0560151,125.22,125.19,4.24652516]
[1741812433839,7.988,125.21,125.19,4.24652516]
[1741812434034,0.0560151,125.22,125.19,4.24652516]
[1741812434336,0.0560151,125.22,125.19,34.98652516]
[1741812434641,29.7275557,125.3,125.2,29.7275557]
[1741812435238,30.74,125.32,125.2,29.7275557]
[1741812435434,7.9822,125.3,125.22,7.9869]
[1741812435631,0.05891568,125.27,125.25,0.0544878]
[1741812435835,269.0275557,125.33,125.26,30.74]
[1741812436032,269.0275557,125.33,125.26,35.074]
[1741812436236,269.0275557,125.33,125.26,29.79658338]
[1741812436648,7.9817,125.31,125.26,29.79658338]
[1741812436845,269.0275557,125.33,125.27,0.05753204]
[1741812437044,0.05443462,125.3,125.27,0.05753204]
[1741812437241,7.9835,125.28,125.27,0.05753204]
[1741812438145,37.7110557,125.28,125.27,3.204e-05]
[1741812438440,29.7275557,125.28,125.2,30.74]
[1741812438644,7.9861,125.24,125.2,30.74]
[1741812439043,30.74,125.27,125.19,4.0938]
[1741812439044,29.7275557,125.26,125.19,4.0938]
[1741812439641,0.05461074,125.24,125.21,0.0512545]
[1741812439842,30.74,125.23,125.21,0.0512545]
[1741812440241,7.9873,125.22,125.21,0.0512545]
[1741812441945,37.7148557,125.22,125.21,0.0512545]
[1741812443235,7.9906,125.17,125.15,8.4529]
[1741812443441,60.4875557,125.2,125.14,4.342]
[1741812443642,30.76,125.19,125.14,4.342]
[1741812444038,38.7496,125.19,125.14,4.342]
[1741812444237,30.76,125.19,125.14,4.342]
[1741812444443,0.05217665,125.18,125.15,0.05360172]
[1741812444948,7.9873,125.22,125.16,7.9908]
[1741812445347,30.74,125.23,125.14,64.8095557]
[1741812445943,0.05637682,125.2,125.17,0.05372657]
[1741812447050,7.9893,125.19,125.17,0.05372657]
[1741812447246,0.05637682,125.2,125.17,0.05372657]
[1741812447453,30.81637682,125.2,125.17,0.05372657]
[1741812447746,7.9899,125.18,125.17,0.05372657]
[1741812448651,30.81637682,125.2,125.17,0.05372657]
[1741812449544,8.04547682,125.2,125.17,0.05372657]
[1741812449749,0.05637682,125.2,125.12,38.9374]
[1741812449952,41.72938912,125.22,125.12,38.9374]
[1741812450147,7.9889,125.2,125.15,7.9915]
[1741812450547,7.9887,125.2,125.15,7.9915]
[1741812450848,0.0571111,125.19,125.16,0.05119388]
[1741812451444,0.0571111,125.19,125.17,7.9901]
[1741812451640,0.0571111,125.19,125.17,7.92401452]
[1741812452151,0.0571111,125.19,125.16,0.05119388]
[1741812452552,7.9903,125.18,125.16,0.05119388]
[1741812452850,0.0571111,125.19,125.16,0.05119388]
[1741812453050,7.9905,125.17,125.16,0.05119388]
[1741812453552,7.9905,125.17,125.13,30.76]
[1741812453749,7.9905,125.17,125.13,7.9927]
[1741812453948,7.9905,125.17,125.12,38.9374]
[1741812454143,7.9902,125.18,125.12,38.9374]
[1741812454444,30.76,125.19,125.14,7.9919]
[1741812454642,7.9899,125.18,125.14,7.9919]
[1741812454845,8.04587382,125.18,125.15,0.05295987]
[1741812455856,7.9911,125.17,125.15,0.05295987]
[1741812456551,0.05597382,125.18,125.15,0.05295987]
[1741812457051,7.9912,125.16,125.15,0.05295987]
[1741812458248,7.9908,125.17,125.15,0.05295987]
[1741812459257,0.05597382,125.18,125.15,0.05295987]
[1741812460157,7.9909,125.17,125.15,0.05295987]
[1741812462350,0.05597382,125.18,125.15,0.05295987]
[1741812465864,7.9912,125.16,125.15,0.05295987]
[1741812466057,38.7512,125.16,125.15,5.987e-05]
[1741812466256,57.3862049,125.16,125.15,5.987e-05]
[1741812466967,68.35559402,125.16,125.15,5.987e-05]
[1741812468261,88.46849191,125.16,125.04,43.6909]
[1741812468563,7.9957,125.09,125.04,51.6897]
[1741812469073,49.3950049,125.11,125.04,51.6897]
[1741812469264,0.05996168,125.08,125.05,0.05073561]
[1741812469769,0.05996168,125.08,125.05,8.04883561]
[1741812469961,18.6350049,125.13,125.05,0.05073561]
[1741812470160,18.6350049,125.13,125.06,7.997]
[1741812470364,30.76,125.14,125.04,12.9309]
[1741812470365,60.58744946,125.14,125.04,12.9309]
[1741812470667,60.58744946,125.14,125.08,7.9958]
[1741812470967,60.58744946,125.14,125.06,30.76]
[1741812471267,43.92982576,125.12,125.1,0.05619859]
[1741812474569,0.05226928,125.12,125.1,0.05619859]
[1741812474962,0.05226928,125.12,125.1,12.33319859]
[1741812475167,0.05226928,125.12,125.1,16.58629859]
[1741812476068,0.05226928,125.12,125.1,8.59189859]
[1741812476658,0.05226928,125.12,125.1,0.05619859]
[1741812477980,0.05226928,125.12,125.11,7.9944]
[1741812478272,0.05226928,125.12,125.1,0.05619859]
[1741812479066,8.04606928,125.12,125.1,0.05619859]
[1741812480071,7.9944,125.11,125.1,0.05619859]
[1741812481872,60.65971874,125.12,125.1,0.05619859]
[1741812482071,7.9944,125.11,125.1,0.05619859]
[1741812483972,30.83226928,125.12,125.1,0.05619859]
[1741812484777,7.9944,125.11,125.1,0.05619859]
[1741812486283,38.82646928,125.12,125.1,0.05619859]
[1741812486474,0.05226928,125.12,125.1,0.05619859]
[1741812487372,7.9944,125.11,125.1,0.05619859]
[1741812487574,0.05226928,125.12,125.1,0.05619859]
[1741812488977,10.96938912,125.16,125.1,0.05619859]
[1741812489185,10.96938912,125.16,125.13,7.9927]
[1741812489579,10.96938912,125.16,125.12,30.78]
[1741812489776,120.66328033,125.17,125.16,7.9912]
[1741812489985,131.63266946,125.18,125.16,30.78]
[1741812490179,125.05001907,125.18,125.16,30.78]
[1741812490476,105.48221907,125.18,125.17,7.9905]
[1741812490678,270.25412412,125.2,125.16,76.02550032]
[1741812490881,270.25412412,125.2,125.18,26.59612965]
[1741812491281,4.3123,125.25,125.18,26.59612965]
[1741812491477,7.9871,125.23,125.19,30.78]
[1741812491681,4.2297,125.25,125.19,30.78]
[1741812491982,0.0591004,125.22,125.2,0.05138536]
[1741812494381,0.0591004,125.22,125.2,8.03978536]
[1741812495081,0.0591004,125.22,125.2,0.05138536]
[1741812495280,0.0591004,125.22,125.21,7.988]
[1741812496087,0.0591004,125.22,125.2,0.05138536]
[1741812500694,0.0591004,125.22,125.2,8.03958536]
[1741812501090,0.0591004,125.22,125.2,0.05138536]
[1741812502195,0.0591004,125.22,125.14,30.76]
[1741812502391,60.52398898,125.23,125.14,38.7522]
[1741812502693,29.76398898,125.21,125.14,30.76]
[1741812503291,0.05319414,125.19,125.16,0.05215274]
[1741812503491,7.9903,125.18,125.16,0.05215274]
[1741812505195,8.04279414,125.19,125.16,0.05215274]
[1741812505398,0.05319414,125.19,125.16,0.05215274]
[1741812505797,0.05319414,125.19,125.16,8.04285274]
[1741812505999,0.05319414,125.19,125.16,0.05215274]
[1741812506499,0.05319414,125.19,125.16,8.04275274]
[1741812506704,0.05319414,125.19,125.17,30.74]
[1741812507598,0.05319414,125.19,125.18,7.9899]
[1741812508002,0.05319414,125.19,125.17,30.74]
[1741812508297,0.05319414,125.19,125.17,38.7304]
[1741812509200,0.05319414,125.19,125.17,30.74]
[1741812510105,8.04269414,125.19,125.16,0.05215274]
[1741812510297,8.04269414,125.19,125.16,30.79215274]
[1741812510899,7.99,125.18,125.16,30.79215274]
[1741812511206,0.05319414,125.19,125.16,0.05215274]
[1741812511900,7.9899,125.18,125.16,0.05215274]
[1741812512105,0.05319414,125.19,125.16,0.05215274]
[1741812512605,7.9899,125.18,125.16,0.05215274]
[1741812513500,8.04269414,125.19,125.16,0.05215274]
[1741812514206,0.05319414,125.19,125.16,0.05215274]
[1741812514908,7.9902,125.18,125.16,0.05215274]
[1741812515100,0.05319414,125.19,125.16,0.05215274]
[1741812516306,18.67633068,125.19,125.16,0.05215274]
[1741812516701,18.67633068,125.19,125.1,258.48313654]
[1741812516898,18.62313654,125.17,125.09,105.47801195]
[1741812517109,18.62313654,125.17,125.1,30.74]
[1741812517410,7.9919,125.15,125.1,38.7347]
[1741812517708,18.62313654,125.17,125.1,38.7347]
[1741812518008,0.06101145,125.14,125.11,0.05327204]
[1741812518507,8.05381145,125.14,125.11,0.05327204]
[1741812519103,7.9937,125.12,125.11,0.05327204]
[1741812519798,34.92301145,125.14,125.06,30.74]
[1741812519996,7.995,125.1,125.04,239.72]
[1741812520198,7.995,125.1,125.05,38.7379]
[1741812520410,7.995,125.1,125.05,7.9979]
[1741812521106,0.05956304,125.09,125.06,0.05469283]
[1741812521805,0.05956304,125.09,125.06,8.05219283]
[1741812522000,0.05956304,125.09,125.06,0.05469283]
[1741812524206,0.05956304,125.09,125.07,30.76]
[1741812524814,29.81298786,125.17,125.07,30.76]
[1741812525013,4.0602,125.17,125.08,29.81298786]
[1741812525408,39.312,125.2,125.07,30.76]
[1741812525409,8.552,125.2,125.1,29.81298786]
[1741812525612,4.2023,125.2,125.12,29.81298786]
[1741812525807,4.2023,125.2,125.16,7.9908]
[1741812526014,4.2023,125.2,125.16,30.76]
[1741812526912,4.2023,125.2,125.15,7.9913]
[1741812527113,7.99,125.18,125.17,0.0544352]
[1741812527614,0.05517358,125.19,125.12,30.76]
[1741812527815,4.2023,125.2,125.08,29.81298786]
[1741812527816,4.2023,125.2,125.13,30.76]
[1741812528208,4.2023,125.2,125.13,38.7527]
[1741812528413,4.2023,125.2,125.13,30.76]
[1741812528608,0.05168001,125.18,125.15,0.05819945]
[1741812529217,0.05168001,125.18,125.16,7.9907]
[1741812531419,0.05168001,125.18,125.15,0.05819945]
[1741812531720,0.05168001,125.18,125.17,7.9905]
[1741812533118,0.05168001,125.18,125.16,30.76]
[1741812534216,0.05168001,125.18,125.15,0.05819945]
[1741812534421,8.04198001,125.18,125.15,0.05819945]
[1741812535421,0.05168001,125.18,125.15,0.05819945]
[1741812537820,8.04158001,125.18,125.15,0.05819945]
[1741812538021,0.05168001,125.18,125.15,0.05819945]
[1741812538323,7.9912,125.16,125.15,0.05819945]
[1741812540217,4.076,125.17,125.15,0.05819945]
[1741812540417,12.0668,125.17,125.15,0.05819945]
[1741812541328,7.9912,125.16,125.15,0.05819945]
[1741812542032,12.0668,125.17,125.15,0.05819945]
[1741812542924,4.076,125.17,125.15,0.05819945]
[1741812543423,0.05168001,125.18,125.15,0.05819945]
[1741812543624,0.05168001,125.18,125.15,8.04999945]
[1741812543822,0.05168001,125.18,125.15,30.79819945]
[1741812545532,7.9908,125.17,125.15,30.79819945]
[1741812545733,7.9908,125.17,125.15,0.05819945]
[1741812546427,18.66658435,125.18,125.15,0.05819945]
[1741812546725,7.9912,125.16,125.15,0.05819945]
[1741812546925,7.9912,125.16,125.06,56.89358364]
[1741812546926,18.61490434,125.16,125.07,18.71290434]
[1741812547128,18.61490434,125.14,125.07,49.35490434]
[1741812547343,18.61490434,125.14,125.07,30.74]
[1741812547531,30.74,125.13,125.05,322.19873203]
[1741812547733,7.9947,125.11,125.06,7.9972]
[1741812547927,7.9947,125.11,125.05,291.45873203]
[1741812548133,0.05557933,125.1,125.07,0.05174762]
[1741812548929,0.05557933,125.1,125.07,8.04834762]
[1741812549123,0.05557933,125.1,125.07,0.05174762]
[1741812549925,0.05557933,125.1,125.07,18.66665196]
[1741812550330,0.05557933,125.1,125.07,0.05174762]
[1741812551835,0.05557933,125.1,125.07,8.04834762]
[1741812552036,0.05557933,125.1,125.07,0.05174762]
[1741812552936,0.05557933,125.1,125.07,8.04844762]
[1741812553333,30.76,125.09,125.0,119.16931468]
[1741812553533,64.93531648,125.09,125.0,119.16931468]
[1741812554134,64.93531648,125.09,125.0,127.17031468]
[1741812554440,0.05494572,125.06,125.03,0.05272204]
[1741812554733,8.05274572,125.06,125.03,0.05272204]
[1741812555535,0.05494572,125.06,125.03,0.05272204]
[1741812556236,38.81254572,125.06,125.03,0.05272204]
[1741812556637,29.81301648,125.05,124.96,30.76]
[1741812556830,29.81301648,125.05,124.95,30.76]
[1741812557029,29.81301648,125.03,124.95,30.76]
[1741812557231,30.76,125.02,124.95,30.76]
[1741812557434,30.76,125.02,124.97,8.0031]
[1741812557634,30.76,125.02,124.98,0.06099995]
[1741812557842,0.05225203,125.01,124.98,0.06099995]
[1741812559341,8.0018,125.0,124.98,0.06099995]
[1741812559736,0.05225203,125.01,124.98,0.06099995]
[1741812559940,8.05345203,125.01,124.98,0.06099995]
[1741812560142,0.05225203,125.01,124.98,0.06099995]
[1741812561130,0.05225203,125.01,124.98,8.06329995]
[1741812561330,0.05225203,125.01,124.98,0.06099995]
[1741812561536,0.05225203,125.01,124.99,8.0016]
[1741812561938,0.05225203,125.01,124.98,0.06099995]
[1741812562138,0.05225203,125.01,124.99,8.002]
[1741812562335,0.05225203,125.01,124.98,0.06099995]
[1741812562738,0.05225203,125.01,125.0,8.0014]
[1741812563139,0.05225203,125.01,124.99,8.0017]
[1741812563440,0.05225203,125.01,124.98,0.06099995]
[1741812563739,0.05225203,125.01,124.98,30.84099995]
[1741812563939,0.05225203,125.01,125.0,8.0014]